Workbook

Sheet график
B1: График сдачи тарификации на 01.09.2017 года.
A3: 2017-08-21 | B3: Карелино дс | C3: 08.00. | E3: Направляем ВАМ форму тарификации.
B4: Арбор дс | C4: 09.00. | E4: Срок сдачи тарификации по графику (строго соблюдать форму тариф-ии,
B5: М.Лызи дс | C5: 10.00. | E5: столбцы, размер строк не менять )
B6: Сардык дс | C6: 11.00 | E6: При себе иметь: | G6: штатное расписание
B7: Бурбаш дс | C7: 13.00. | G7: список детей, по датам рождения в сторону увеличения
B8: Дурга дс | C8: 14.00. | G8: кто не сдал, документы переподготовки
B9: Кугунур дс | C9: 14.30.
B10: Нуринер дс | C10: 15.00.
A11: 2017-08-22 | B11: Пижмара дс | C11: 08.00.
B12: Салаусь дс | C12: 08.30.
B13: Смаиль дс | C13: 09.30.
B14: Сосна дс | C14: 10.30.
B15: Ципья дс | C15: 13.00.
B16: Шишинер дс | C16: 14.00.
B17: Шубан дс | C17: 14.30.
B18: Янгулово дс | C18: 15.00.
A19: 2017-08-23 | B19: Алан шк-сад | C19: 08.00.
B20: Б.Сардыган шк-сад | C20: 08.30.
B21: В.Ушма шк-сад | C21: 09.00.
B22: Атня шк-сад | C22: 09.30.
B23: Кили шк-сад | C23: 10.00.
B24: Княбаш шк-сад | C24: 10.30.
B25: Сырья шк-сад | C25: 13.00
B26: Шуда шк-сад | C26: 13.30.
B27: Улисьял шк-сад | C27: 14.00
B28: Ура шк-сад | C28: 14.30.
A29: 2017-08-24 | B29: Бурнак шк-сад | C29: 08.00.
B30: Чутай шк-сад | C30: 08.30.
B31: Кушкетбаш шк-сад | C31: 09.00
B32: Я.Чурма шк-сад | C32: 09.30.
B33: Карадуван дс | C33: 10.00.
B34: Дс №2 | C34: 13.00.
B35: ДС №3 | C35: 14.00.
A36: 2017-08-25 | B36: ДС №1 | C36: 08.00.
B37: ДС №4 | C37: 09.00.
B38: Тавзар шк-сад | C38: 10.00.
B39: ДС №5 | C39: 13.00

Sheet памятка пед
C1: ИНформация на 01.07.2017 года.
C2: ДДУ
A3: Разряды оплаты труда | B3: 1 | C3: 2 | D3: 3 | E3: 4
A4: Тарифные коэффициенты | B4: 1 | C4: 1.23 | D4: 1.43 | E4: 1.5
A5: Образование | B5: основное,среднее обр-е | C5: нач.проф.,средне-спец, неполное высш обр-е | D5: высшее-бакалавр | E5: высшее-магистр,специалист
A6: Оклад базовый | B6: 5554 | C6: =B6*C4 -> 6831 | D6: =B6*D4 -> 7942 | E6: =B6*E4 -> 8331 | F6: мл.воспит,медсестра
A7: Оклад должностной | C7: 6402*нагр/норма часов | D7: 7443*нагр/норма часов | E7: 7808*нагр/норма часов
A8: Тарифные коэффициенты | B8: 1 | C8: 1.166 | D8: 1.223 | E8: 1.166
A9: Оклад базовый | B9: =B6*B8 -> 5554 | C9: =C6*C8 -> 7965 | D9: =D6*D8 -> 9713 | E9: =E6*E8 -> 9714 | F9: только педработникам
B10: + 100руб.на ставку
A11: ГРУППЫ ДЕТЕЙ
A12: ОДНОВОЗРАСТНЫЕ | C12: от 2 месяцев до 1 года | E12: 10 детей
C13: от 1 года до 3 лет | E13: 15 детей
C14: от 3 лет до 7 лет | E14: 20 детей
A15: РАЗНОВОЗРАСТНЫЕ | C15: от 2 мес до 3 лет | D15: двух возрастов | E15: 8 детей
C16: от 3 до 7 лет | D16: трех возрастов | E16: 10 детей
C17: от 3 до 7 лет | D17: двух возрастов | E17: 15 детей
A18: СТИМУЛИРУЮЩИЕ ВЫПЛАТЫ
A19: За стаж (пед.работники) | B19: от 2-до 6лет | C19: 3% | D19: от О долж
B20: от 6-до 10лет | C20: 4.5%
B21: от 10-до15 лет | C21: 5.5%
B22: свыше 15 лет | C22: 6.5%
A23: За стаж (мл.воспит) | B23: от 4-до 10 лет | C23: 2% | D23: от О долж
B24: от 10-до 15 лет | C24: 3%
B25: свыше 15 лет | C25: 4%
A26: За стаж (медсестра,стар. медсестра) | B26: от 3 до 5 лет | C26: 2.5% | D26: от О долж
B27: от 5 до 10 лет | C27: 3.5%
B28: от 10 до 15 лет | C28: 4.5%
B29: свыше 15лет | C29: 5.5%
A30: За квал.категорию (воспитатель) | B30: 2 кат | C30: 6% | D30: от О долж
B31: 1 кат | C31: 8.5%
B32: высш кат | C32: 12.5%
A33: За квал.категорию (муз.руководитель) | B33: 2 кат | C33: 4.5% | D33: от О долж
B34: 1 кат | C34: 6%
B35: высш кат | C35: 7.5%
A36: За квал.категорию (учитель-логопед,учит англ.яз,старший воспит) | B36: 2 кат | C36: 7.5% | D36: от О долж
B37: 1 кат | C37: 10%
B38: высш кат | C38: 15%
A39: За квал.категорию (медсестра,стар.медсестра)) | B39: 2 кат | C39: 3% | D39: от О долж
B40: 1 кат | C40: 6%
B41: высш кат | C41: 10%
A42: Дополнительные выплаты за квал.категорию( всем педработникам) | B42: 2 кат | C42: 25% | D42: от О долж
B43: 1 кат | C43: 30%
B44: высш кат | C44: 35%
A45: Специфика за работу в ДОУ | B45: всем педработникам | C45: 45% | D45: от О долж
B46: мл.воспит,пом.воспитателя | C46: 10% | D46: от О долж (ш-дс нет)
A47: За специфику программ(за сложность и напряженность работы) | B47: всем педработникам | C47: 42% | D47: от О долж*% / норм.кол-во детей*факт дети
A48: За специфику программ(за работу в логопед группе) | B48: мл.воспит | C48: 9.0% | D48: от О долж*% / норм.кол-во детей*факт дети
B49: воспитатель
B50: учит-логопед
B51: муз.рук
B52: учит.англ.яз
B53: воспит(рус яз)
B54: учит-логопед | C54: 6.0% | D54: от О долж*% / норм.кол-во детей*факт дети
A55: За специфику программ(за русский язык) | B55: воспит(русс яз) | C55: 4.5% | D55: от О долж*% / норм.кол-во детей*факт дети
A56: За награды | B56: Засл.учит РФ | C56: 10% | D56: от О долж
B57: Засл.учит РТ | C57: 8%
B58: Поч.раб РФ | C58: 6%
B59: Поч.грамота РФ | C59: 4%
B60: Отличн.просв | C60: 6%
B61: За засл.в обрРТ | C61: 4%
A62: За специфику мед | B62: стар.медсестра, м/сестра | C62: 55% | D62: от О должн
A63: За сложность(сложность мед ДДУ) | B63: стар.медсестра | C63: 10% | D63: от О долж
B64: медсестра | C64: 3%
A65: За управление | B65: стар.медсестра | C65: 20% | D65: от О должн
A66: За качество и высокие результаты работы по критериям | B66: осн.персонал | D66: от О долж
A67: Основной персонал | B67: педработники + мл.воспит + медсестра+ст.медсестра
A68: ФОТ для качества | B68: оклады и нагрузки основного персонала (вакансии, совместит не включ.,) | D68: не менее 26%
A69: Премия | B69: всем работникам, кроме рук-й | D69: не менее 2%
A70: ФОТ для премии | B70: Одолж+за неаудит.занятость+стим.выплаты, кроме сельских,ночных,вредности* 2%
A71: ФОТ для расчета оклада рук-ей | B71: Все,кроме вредности,ночных,выплаты за качество и премии | D71: ФОТ осн.персонала - ФОТ по вакансиям деленное на количество ставок, вкл.вакансии
A72: ФОТ для стимулир.руководителей | B72: Включается весь ФОТ+ расчит.оклады руководителей | D72: Весь ФОТ всего персонала * 1% | E72: 50% директору+50% распред.между замами
B73: КОМПЕНСАЦИОННЫЕ ВЫПЛАТЫ
A74: Сельские(пед+ст.медсестра) | C74: 5554*25% * на кол-во ставок

Sheet памятка тех
F1: ИНформация на 01.07.2017 года.
F2: (ДДУ- ТЕХПЕРСОНАЛ)
A4: СЛУЖАЩИЕ | B4: Оклады | C4: За поч.звание | E4: За сложность,напряженность | G4: За стаж | K4: Премия | L4: Вредность | N4: Ночные | P4: за специфику | Q4: дополнит. 10% | R4: доп.надбавка
G5: от 2-до 5 лет | H5: от 5-до 10 лет | I5: от 10-до 15 лет | J5: свыше 15 лет
G6: от О должн
A7: завхоз | B7: 5823 | C7: 3% | D7: от О должн | E7: 5% | F7: от О должн | G7: 2.5% | H7: 4% | I7: 5% | J7: 6% | K7: 2% | Q7: 10% | R7: 1580
A8: мл.воспит | B8: 6831 | L8: 12% | M8: от О должн | Q8: 10% | R8: 1580 | S8: Д/с№1,№2,№3,№4,Карелино,Карадуван,Сосна
A9: пом.воспит | B9: 5554 | L9: 12% | M9: от О должн | Q9: 10% | R9: 1580
A10: медсестра | B10: 6831 | Q10: 10% | R10: 1580
A11: ст.медсестра | B11: 6831 | Q11: 10% | R11: 1580
R12: 1580
A13: РАБОЧИЕ | B13: Оклады | R13: 1580
A14: дворник | B14: 5554 | K14: 2% | Q14: 10% | R14: 1580
A15: сторож | B15: 5593 | K15: 2% | N15: 20% | O15: от О должн | Q15: 10% | R15: 1580
A16: уборщица, раб по стирке,кастелянша,кладовщик, подсбн.работник | B16: 5593 | K16: 2% | Q16: 10% | R16: 1580
A17: повар 3 разр | B17: 5676 | K17: 2% | L17: 8% | M17: от О должн | P17: 20% | Q17: 10% | R17: 1580
A18: слесарь-сантехник | B18: 5676 | K18: 2% | Q18: 10% | R18: 1580
A19: повар 4 | B19: 5676 | K19: 2% | L19: 8% | M19: от О должн | P19: 20% | Q19: 10% | R19: 1580
A20: повар 5 | B20: 5897 | K20: 2% | L20: 8% | M20: от О должн | P20: 20% | Q20: 10% | R20: 1580
A21: повар 6 разр | B21: 5897 | K21: 2% | L21: 8% | M21: от О должн | P21: 20% | Q21: 10% | R21: 1580
A22: водитель 7 разр | B22: 6227 | K22: 2% | Q22: 10% | R22: 1580
A24: ФОТ для премии | B24: Одолж+стим.выплаты, кроме сельских,ночных,вредности* 2%
A26: дополнит 10% | B26: вредность, ночной, премия,качество керми, сельский керэ
B27: общеотр.служ. стим. керми

Sheet форма тариф
L1: Тарификационный список работников | Y1: СОГЛАСОВАНО
L2: МБДОУ _____________________ | Y2: Начальник МКУ "Управление образования
L3: Балтасинского муниципального района РТ | Y3: Балтасинского районного исполнительного
L4: по состоянию на 01.09. 2017 года. | Y4: комитета" РТ
Y6: Закиева А.Ю.
A8: №пп | B8: Ф.И.О. полностью | C8: Должность | D8: Образование | E8: Специальность по диплому | F8: Пед.стаж | G8: Категория | H8: Группа | I8: Кол-во воспит-в | J8: Ставка | K8: Базовый оклад | L8: Должностной оклад | M8: стимулирующие выплаты | Z8: сельские | AA8: вредность | AB8: специфика поварам | AC8: ночные | AD8: доплата 10% | AE8: доп.надбавка | AF8: молодой
M9: качество | N9: стаж | O9: категория | P9: доп.категория | Q9: специфика сл. и напр | R9: специфика русс.яз | S9: работа в ДОУ | T9: специфика логоп.гр | U9: Специфика мед | V9: сложность мед дду | W9: за управл. мед | X9: поч.звание | Y9: премия
A10: 1 | B10: Бадрутдинова | C10: завед | D10: высш | E10: уч.англ.яз | F10: 9 | J10: 1.00
B11: Зухра | S11: 45
B12: Фаритовна
A13: 2 | B13: Галимова | C13: ст.восп. | D13: высш.уч.нач.кл. | F13: 20 | G13: 1 | J13: 0.50 | K13: 9714.00 | L13: =K13*J13 -> 4857.00 | M13: + | N13: 6.5 | O13: 8.5 | P13: 30 | Q13: 42 | S13: 45 | Y13: 2 | Z13: 25
B14: Эльмира | C14: восп. | D14: сред | E14: дош.восп. | H14: от1до3 | I14: 16 | J14: 0.46 | K14: 9714.00 | L14: 4468.44 | M14: + | N14: 6.5 | O14: 8.5 | P14: 30 | Q14: 42 | S14: 45 | Z14: 25
B15: Гаптельшакуровна | H15: от3до4 | I15: 17 | J15: 0.04 | K15: 9714.00 | L15: 388.56 | M15: + | N15: 6.5 | O15: 8.5 | P15: 30 | Q15: 42 | S15: 45 | Z15: 25
B16: 1970-10-13
A17: 3 | B17: Габдрахманова | C17: уч.лог. | D17: высш | E17: тат яз | F17: 20 | H17: комп | I17: 14 | J17: 1.00 | K17: 9714.00 | L17: 9714.00 | M17: + | N17: 6.5 | P17: 30 | Q17: 42 | S17: 45 | T17: 6+9 | Y17: 2 | Z17: 25
B18: Аклима | D18: высш | E18: лог | S18: 45
B19: Саидгараевна | D19: ср-сп | E19: дош.восп. | S19: 45
B20: 1978-05-31 | S20: 45
A21: 4 | B21: Васильева | C21: муз.рук | D21: ср.сп. | E21: артист эс. | F21: 10 | G21: 1 | H21: от1до3 | I21: 16 | J21: 0.15 | K21: 9713.00 | L21: 1456.95 | M21: + | N21: 5.5 | O21: 6 | P21: 30 | Q21: 42 | S21: 45 | Y21: 2% | Z21: 25
B22: Ильгамия | D22: высш.бакал. | H22: от3до4 | I22: 17 | J22: 0.20 | K22: 9713.00 | L22: 1942.60 | M22: + | N22: 5.5 | O22: 6 | P22: 30 | Q22: 42 | S22: 45 | Y22: 2% | Z22: 25
B23: Тагировна | H23: от4до7 | I23: 29 | J23: 0.20 | K23: 9713.00 | L23: 1942.60 | M23: + | N23: 5.5 | O23: 6 | P23: 30 | Q23: 42 | S23: 45 | Y23: 2% | Z23: 25
B24: 1985-08-06 | H24: компенс | I24: 14 | J24: 0.20 | K24: 9713.00 | L24: 1942.60 | M24: + | N24: 5.5 | O24: 6 | P24: 30 | Q24: 42 | S24: 45 | Y24: 2% | Z24: 25
C25: восп | H25: от3до4 | I25: 17 | J25: 0.04 | K25: 9713.00 | L25: 388.52 | M25: + | N25: 5.5 | O25: 6 | P25: 30 | Q25: 42 | S25: 45 | Y25: 2% | Z25: 25
C26: мл.восп. | H26: от4до7 | I26: 29 | J26: 0.31 | K26: 6831.00 | L26: 2117.61 | M26: + | N26: 2 | S26: 10 | AA26: 12 | AD26: 10 | AE26: 396.8
A27: 5 | B27: Гарипова | C27: вос.р.яз | D27: ср.сп. | E27: дош.вос. | F27: 29 | G27: высш | H27: от4до7 | I27: 29 | J27: 0.35 | K27: 7965.00 | L27: 2787.75 | M27: + | N27: 6.5 | O27: 12,5 | P27: 35 | Q27: 42 | R27: 4.5 | S27: 45 | X27: 4 | Y27: 2% | Z27: 25
B28: Диля | C28: вос.р.яз | H28: компенс | I28: 14 | J28: 0.35 | K28: 7965.00 | L28: 2787.75 | M28: + | N28: 6.5 | O28: 12,5 | P28: 35 | Q28: 42 | R28: 4.5 | S28: 45 | X28: 4 | Y28: 2% | Z28: 25
B29: Салимзяновна | C29: воспит. | H29: от3до4 | I29: 17 | J29: 0.30 | K29: 7965.00 | L29: 2389.50 | M29: + | N29: 6.5 | O29: 12,5 | P29: 35 | Q29: 42 | S29: 45 | X29: 4 | Y29: 2% | Z29: 25
B30: 1966-08-16
A31: 6 | B31: Закиева | C31: восп | D31: высш | E31: пед.пс | F31: 21 | G31: высш | H31: от3до4 | I31: 17 | J31: 1.00 | K31: 9714.00 | L31: =K31*J31 -> 9714.00 | M31: + | N31: 6.5 | O31: 12,5 | P31: 35 | Q31: 42% | S31: 45 | Y31: 2% | Z31: 25%
B32: Гульнур | D32: ср-сп | E32: дош.вос
B33: Ильязовна
B34: 1973-11-26
A35: 7 | B35: Лутфуллина | C35: восп | D35: высш. | E35: уч.нач.кл. | F35: 24 | G35: 1 | H35: от1до3 | I35: 16 | J35: 1.00 | K35: 9714.00 | L35: =K35*J35 -> 9714.00 | M35: + | N35: 6.5 | O35: 8.5 | P35: 30 | Q35: 42 | Y35: 2 | Z35: 25
B36: Зиля | E36: дош.восп. | S36: 45
B37: Анасовна
B38: 1973-04-17
B39: Набиева | C39: восп | D39: ср.сп. | E39: уч.нач.кл. | F39: 27 | G39: 1 | H39: от4до7 | I39: 29 | J39: 0.71 | K39: 9714.00 | L39: 6896.94 | M39: + | N39: 6.5 | O39: 8.5 | P39: 30 | Q39: 42 | Y39: 2 | Z39: 25
B40: Ильсияр | E40: дош.восп. | H40: от3до4 | I40: 17 | J40: 0.04 | S40: 45%
A41: 2 | B41: Гайфуловна
B42: 1966-08-25
B43: Нигматуллина | C43: восп. | D43: высш. | E43: уч.биол. | F43: 28 | G43: высш. | H43: компенс | I43: 14 | J43: 0.46 | K43: 9714.00 | L43: 4468.44 | N43: 6.5 | O43: 12,5 | P43: 35% | Q43: 42% | Y43: 2% | Z43: 25%
B44: Раушания | D44: ср.сп. | E44: дош.восп. | H44: от3до4 | I44: 17 | J44: 0.04 | S44: 45%
B45: Фаиловна
A46: 1 | B46: 1969-08-31
B47: Хайруллина | C47: восп | D47: ср-сп | E47: дош.вос | F47: 25 | G47: высш | H47: компенс | I47: 14 | J47: 1.00 | K47: 7965.00 | L47: 7965.00 | M47: + | N47: 6.5 | O47: 12.5 | P47: 35% | Q47: 42% | X47: 4 | Y47: 2% | Z47: 25%
B48: Назия
B49: Адгамовна
A50: 2 | B50: 1963-12-02
B51: Юсупова | C51: восп | D51: ср.сп. | E51: дош.вос. | F51: 30 | G51: 1 | H51: от4до7 | I51: 29 | J51: 0.75 | N51: 6.5
B52: Резеда
B53: Мидхатовна
B54: 1964-04-20
A55: 1 | B55: Гарифуллина | C55: мед.сес | D55: ср.пр. | E55: сестр.дело | F55: 3 | J55: 0.75 | K55: 6831.00 | L55: 5123.25 | N55: 2.5 | U55: 55 | V55: 3 | Y55: 2% | Z55: 25% | AE55: 10 | AF55: 960
B56: Чулпан | S56: 10%
B57: Фаргатовна
B58: 1991-03-05
A59: 2 | B59: Булатова | C59: пом.вос | D59: нач.пр | E59: портниха | F59: 4 | H59: от3до4 | I59: 17 | J59: 1.31 | K59: 5554.00 | L59: 7275.74 | M59: + | N59: 2 | Y59: 2% | AA59: 12% | AE59: 10 | AF59: 1667
B60: Аниса | S60: 10%
B61: Шамилевна
B62: 1975-06-16
B63: Хасаншина | C63: пом.восп | D63: нач.пр | E63: повар 4р | F63: 19 | H63: компенс | I63: 14 | J63: 1.00 | K63: 5554.00 | L63: 5554.00 | M63: + | N63: 4 | Y63: 2% | AA63: 12% | AE63: 10 | AF63: 1280
A64: 1 | B64: Гузалия | C64: раб.по ст. | J64: 0.17 | K64: 5593.00 | L64: 950.81 | S64: 10 | AE64: 10 | AF64: 218
B65: Рашитовна
B66: 1968-03-21
B67: Нургалиева | C67: мл.восп. | D67: ср-сп | E67: дош.восп. | F67: 22 | H67: от4до7 | I67: 29 | J67: 1.00 | K67: 6831.00 | L67: 6831.00 | M67: + | N67: 4 | Y67: 2% | AA67: 12 | AE67: 10 | AF67: 1280
A68: 2 | B68: Асия | C68: раб.по ст. | J68: 0.16 | K68: 5593.00 | L68: 894.88 | S68: 10 | AE68: 10 | AF68: 205
B69: Василовна
B70: 1973-10-06
B71: Гарипова | C71: пом.восп. | D71: нач.пр. | E71: конд3р | F71: 7 | H71: от1до3 | I71: 16 | J71: 1.00 | K71: 5554.00 | L71: 5554.00 | M71: + | N71: 2 | Y71: 2% | AA71: 12 | AE71: 10 | AF71: 1280
B72: Лилия | C72: раб.по ст. | J72: 0.17 | K72: 5593.00 | L72: 950.81 | S72: 20 | AE72: 10 | AF72: 218
A73: 1 | B73: Табрисовна
B74: 1973-06-11
B75: Галямутдинова | C75: повар | D75: нач.пр | E75: повар 6р | F75: 16 | J75: 1.00 | K75: 5897.00 | L75: 5897.00 | M75: + | Y75: 2% | AA75: 8 | AE75: 10 | AF75: 1280
B76: Рауфа | C76: под.раб | J76: 0.25 | K76: 5593.00 | L76: 1398.25 | S76: 20 | AA76: 8% | AE76: 10 | AF76: 320
A77: 2 | B77: Рафхатовна
B78: 1966-08-01
B79: Закирова | C79: повар | D79: нач.пр. | E79: повар5р | F79: 12 | J79: 1.00 | K79: 5897.00 | L79: 5897.00 | M79: + | Y79: 2% | AA79: 8 | AE79: 10 | AF79: 1280
B80: Роза | C80: подс.раб | J80: 0.25 | K80: 5593.00 | L80: 1398.25 | AA80: 8 | AE80: 10 | AF80: 320
B81: Гумаровна | S81: 10
A82: 1 | B82: 1972-10-21 | S82: 10
B83: Сибагатуллина | C83: завхоз | D83: нач.пр. | E83: конд3р | F83: 11 | J83: 0.75 | K83: 5823.00 | L83: 4367.25 | N83: 5 | V83: 5 | Y83: 2% | AE83: 10 | AF83: 960
B84: Нурия | C84: пом.восп | F84: 8 | H84: от3до7 | I84: 30 | J84: 0.31 | K84: 5554.00 | M84: + | AA84: 12 | AE84: 10 | AF84: 397
B85: Рустамовна | J85: 0.31 | K85: 5554.00 | AA85: 12 | AE85: 10 | AF85: 397
A86: 2 | B86: 1965-08-09
B87: Булатова | C87: стор | D87: ср.сп. | E87: техн | F87: 1 | J87: 0.50 | K87: 5593.00 | L87: 2796.00 | AE87: 10 | AF87: 640
B88: Ильнур
B89: Ильгизович
B90: совместитель | E90: заведующий МБДОУ: | H90: _________________________________З.Ф.Бадрутдинова
A91: 1 | B91: 1972-10-22
D92: декретный отпуск
B93: Ахмадуллина | C93: медсестра
B94: Гузалия
A95: 2 | B95: Абдуллина | C95: пом.восп
B96: Фарида

Sheet шт.расписание
B1: СОГЛАСОВАНО: | G1: УТВЕРЖДАЮ:
B2: Председатель финансово-бюджетной | G2: Начальник МКУ "Управление образования
B3: палаты Балтасинского муниципального | G3: Балтасинского районного исполнительного
B4: района | G4: комитета РТ"
B6: ______________________ | E6: Р.М.Ильясов | G6: ________________ | H6: А.Ю.Закиева
F9: ШТАТНОЕ РАСПИСАНИЕ
D10: МБДОУ "Карадуванский детский сад комбинированного вида"
F11: по состоянию на 01.09.2017 года.
B15: Режим работы: | D15: 10.5
B16: Группа: | D16: 4
B17: Всего детей: | D17: 78
B18: в т.ч. ясельн. | D18: 16
B19: дошкольн. | D19: 62
B23: Должность | E23: Кол-во штатных единиц
B25: Заведующая | E25: 1
B26: Ст.воспитатель | E26: 0.5
B27: Логопед | E27: 1
B28: Муз.рук-ль | E28: 0.75
B29: Воспитатель | E29: 5.84
B30: Воспит.русс.яз | E30: 0.7
B31: Учит. англ.яз | E31: 0.5
B32: Медсестра | E32: 0.75
B33: Мл.воспитатель | E33: 1.31
B34: Пом.воспитатель | E34: 3.93
B35: Завхоз | E35: 0.75
B36: Повар | E36: 2
B37: Под.рабочий | E37: 0.5
B38: Кладовщик | E38: 0
B39: Слесарь-сантехник | E39: 0
B40: Кастелянша | E40: 0
B41: Раб.по стирке | E41: 0.5
B42: Сторож | E42: 0.5
B43: Дворник | E43: 0
B44: Водитель | E44: 0
B45: Уборщица | E45: 0
C46: ВСЕГО | E46: =SUM(E25:G45) -> 20.53
C48: М.П.
C49: Заведующий МБДОУ: | G49: З.Ф.Бадрутдинова

Sheet список детей
C1: Список детей, посещающих
C2: МБДОУ "Карадуванский детский сад комбинированного вида"
C3: по состоянию на 01.09.2017 года.
C5: Кол-во групп: 4
C6: из них: по возрастам ( ясельная от 1 года до 3-х лет) | F6: 1
D7: ( дошкольная от 3-х лет до 7 лет) | F7: 3
B10: №пп | C10: Ф.И.О.(полностью) | D10: Дата рождения (число, месяц, год) | E10: Льготники (50%, 100%) | F10: Примечание
C12: ясельная группа (от1 года до 3 лет)
B13: 1 | C13: Абдуллина Самина Фаннуровна | D13: 2016-03-11
B14: 2 | C14: Файзрахманов Гадел Айнурович | D14: 2016-01-25
B15: 3 | C15: Хайрутдинова Индира Ильхамовна | D15: 2016-01-11 | E15: 50%
B16: 4 | C16: Хасанова Ильвина Ильшатовна | D16: 2015-11-18
B17: 5 | C17: Хайруллин Амир Маннурович | D17: 2015-11-11
B18: 6 | C18: Галялетдинова Язиля Рамилевна | D18: 2015-11-09 | E18: 50%
B19: 7 | C19: Гарифуллина Сафина Фанилевна | D19: 2015-10-19
B20: 8 | C20: Зиннатуллина Диляра Рузалевна | D20: 2015-10-16
B21: 9 | C21: Нуриева Филия Ильдаровна | D21: 2015-08-25
B22: 10 | C22: Гатин Камиль Ирекович | D22: 2015-07-23
B23: 11 | C23: Рамазанов Раян Раилевич | D23: 2015-06-25
B24: 12 | C24: Закиров Ислам Альмирович | D24: 2015-05-27
B25: 13 | C25: Набиев Ильмир Ильнурович | D25: 2015-03-27
B26: 14 | C26: Хисамова Диля Ирековна | D26: 2015-03-15
B27: 15 | C27: Закирзянов Карим Ильшатович | D27: 2015-01-19
B28: 16 | C28: Шагинурова Зарина Айдаровна | D28: 2014-12-25
C30: дошкольная группа (от 3 до 7 лет) разновозрастная №1
B31: 1 | C31: Ибрагимова Алина Равхатовна | D31: 2014-08-21
B32: 2 | C32: Файзрахманов Салихжан Сиренивеч | D32: 2014-07-31
B33: 3 | C33: Зайнуллин Ислам Рузилевич | D33: 2014-07-07 | E33: 50%
B34: 4 | C34: Исмаилова Самина Радиковна | D34: 2014-07-01
B35: 5 | C35: СаляховаКамиля Рамилевна | D35: 2014-06-29
B36: 6 | C36: Муртазина Самира Ильхамовна | D36: 2014-06-26
B37: 7 | C37: Николаев Даниил Владимирович | D37: 2014-06-26
B38: 8 | C38: Хисматуллина Зифа Рамилевна | D38: 2014-06-23
B39: 9 | C39: Назипов Амирхан Джалилович | D39: 2014-05-07
B40: 10 | C40: Нигматуллина Дина Дмитриевна | D40: 2014-03-20
B41: 11 | C41: Закиров Самир Рафилевич | D41: 2014-02-19
B42: 11 | C42: Билалов Ильяс Наилевич | D42: 2014-01-21
B43: 13 | C43: Сабитова Адиля Айдаровна | D43: 2014-01-10
B44: 14 | C44: Набиева Алина Ильнуровна | D44: 2013-11-25
B45: 15 | C45: Самигуллин Булат Маратович | D45: 2013-10-15
B46: 16 | C46: Ибрагимов Данияр Радифович | D46: 2013-09-30
B47: 17 | C47: Шарафутдинова Назиля Рафилевна | D47: 2013-09-04
B48: 18 | C48: Гиматова Ралина Айдаровна | D48: 2013-08-26
B49: 19 | C49: Билалова Зарина Камилевна | D49: 2013-08-11
B50: 20 | C50: Хисматуллина Тансылу Радиковна | D50: 2013-08-12
B51: 21 | C51: Халиуллин Нурлан Ленурович | D51: 2013-07-12
B52: 22 | C52: Саляхова Ралина Рамилевна | D52: 2013-04-14
B53: 23 | C53: Ахметханов Риназ Азатович | D53: 2013-03-08
C55: дошкольная группа (от3 до 7 лет) | D55: разновозрастная №2
B56: 1 | C56: Яруллин Салават Ильнурович | D56: 2013-02-21
B57: 2 | C57: Андреев Тимур Николаевич | D57: 2013-02-17 | E57: 50%
B58: 3 | C58: Шигабутдинова Малика Ранисовна | D58: 2013-01-22
B59: 4 | C59: Каюмова Дилия Динаровна | D59: 2013-01-20
B60: 5 | C60: Шафигуллина Илюза Ильшатовна | D60: 2013-01-09
B61: 6 | C61: Зиятдинов Ислам Рамилевич | D61: 2012-12-28
B62: 7 | C62: Галиева Гульсем Ильясовна | D62: 2012-12-22 | E62: 50%
B63: 8 | C63: Шарипов Тимерхан Шаукатович | D63: 2012-12-09 | E63: 50%
B64: 9 | C64: Зиятдинов Фарит Ленарович | D64: 2012-11-15
B65: 10 | C65: Ибатуллина Асылъяр Айратовна | D65: 2012-11-09
B66: 11 | C66: Николаева Регина Владимировна | D66: 2012-10-31
B67: 12 | C67: Набиев Самат Табрикович | D67: 2012-09-08
B68: 13 | C68: Закирзянова Инзиля Ильшатовна | D68: 2012-08-13
B69: 14 | C69: Хайруллин Ислам Ильдарович | D69: 2012-08-01
B70: 15 | C70: Закиров Рамазан Айнурович | D70: 2012-07-24
B71: 16 | C71: Губаев Тимур Рустамович | D71: 2012-07-09
B72: 17 | C72: Халиуллин Ильгам Ниязович | D72: 2012-06-08
B73: 18 | C73: Хафизова Илюза Раилевна | D73: 2012-03-31
B74: 19 | C74: Самигуллин Карим Маратович | D74: 2012-02-15
B75: 20 | C75: Хафизова Камилла Айратовна | D75: 2011-10-24
B76: 21 | C76: Гафурова Дильбар Равилевна | D76: 2011-06-28 | E76: 50%
B77: 22 | C77: Гарифуллин Амир Ирекович | D77: 2011-06-18
B78: 23 | C78: Миннебаев Идрис Рустамович | D78: 2011-02-18 | E78: 50%
B79: 24 | C79: Гильметдинов Ильназ Азатович | D79: 2011-02-17
C81: компенсирующая группа (от 5 до 7 лет)
B82: 1 | C82: Фазылзянова Зарина Ринатовна. | D82: 2012-09-07 | E82: 50%
B83: 2 | C83: Хусаинов Зиннур Расимович | D83: 2012-06-15
B84: 3 | C84: Бадрутдинова Эвелина Эдуардовна | D84: 2012-05-19
B85: 4 | C85: Залялов Ильназ Аязович | D85: 2012-02-12
B86: 5 | C86: Мухаметшина Ирка Айнуровна | D86: 2012-01-26
B87: 6 | C87: Файзрахманова Адиля Айнуровна | D87: 2011-01-01
B88: 7 | C88: Хусаинова Сакина Раисовна | D88: 2011-12-19
B89: 8 | C89: Мифтахова Залия Ильдусовна | D89: 2011-11-07
B90: 9 | C90: Валиуллин Марсель Мансурович | D90: 2011-11-05 | E90: 50%
B91: 10 | C91: Шакирзянова Наргиза Ильшатовна | D91: 2011-10-21
B92: 11 | C92: Галиев Мухаммад Ильясович | D92: 2011-09-23 | E92: 50%
B93: 12 | C93: Хисматуллина Юлдуз Радиковна | D93: 2011-09-20
B94: 13 | C94: Абдуллина СамираФаннуровна | D94: 2011-05-24
B95: 14 | C95: Закирова Айгуль Айнуровна | D95: 2011-04-14
B96: 15 | C96: Валиев Ильназ Рафаилович | D96: 2011-04-04 | E96: 100%
C99: Заведующий: Бадрутдинова З.Ф.
